bitfinex-derivatives/quotes_SOLF0:USTF0_20251026
["timestamp","ask_amount","ask_price","bid_price","bid_amount"]
[1761489352373,2.59,199.2,199.09,2.81]
[1761489358881,2.59,199.2,199.11,2.81]
[1761489360679,2.59,199.2,199.11,4.5199]
[1761489360881,2.59,199.2,199.12,2.81]
[1761489363482,2.78,199.27,199.12,2.81]
[1761489363886,2.78,199.26,199.12,2.81]
[1761489364593,2.78,199.25,199.12,2.81]
[1761489364791,2.78,199.24,199.12,2.81]
[1761489364995,2.78,199.24,199.12,7.3297]
[1761489365191,2.78,199.24,199.13,2.6]
[1761489365698,2.78,199.24,199.15,2.6]
[1761489366199,2.78,199.24,199.17,2.6]
[1761489369593,2.78,199.24,199.14,2.74]
[1761489371297,2.71,199.23,199.14,2.74]
[1761489372401,2.71,199.22,199.14,2.74]
[1761489373798,4.23374625,199.25,199.14,2.74]
[1761489373799,2.71,199.25,199.14,2.74]
[1761489375806,2.71,199.25,199.15,2.74]
[1761489377202,4.23066162,199.25,199.15,2.74]
[1761489377409,2.71,199.24,199.15,2.74]
[1761489377903,2.71,199.24,199.12,7.2598]
[1761489378294,2.71,199.24,199.13,2.74]
[1761489379909,2.71,199.24,199.09,6.20025804]
[1761489380110,2.71,199.24,199.1,2.74]
[1761489380309,2.71,199.23,199.1,2.74]
[1761489383509,2.71,199.22,199.1,2.74]
[1761489384102,2.71,199.21,199.1,2.74]
[1761489385006,2.71,199.2,199.1,2.74]
[1761489385197,2.71,199.19,199.1,2.74]
[1761489385904,2.71,199.19,199.11,2.74]
[1761489392213,2.71,199.19,199.07,6.20025804]
[1761489392408,4.65671153,199.11,198.96,2.74]
[1761489392610,4.65671153,199.09,198.96,2.74]
[1761489392910,2.71,199.08,198.9,2.74]
[1761489393115,2.71,199.07,198.9,2.74]
[1761489393503,2.71,199.06,198.9,2.74]
[1761489393914,2.71,199.05,198.9,2.74]
[1761489394117,2.71,199.04,198.9,2.74]
[1761489394813,2.71,199.04,198.91,2.74]
[1761489398120,2.71,199.04,198.94,2.74]
[1761489398628,2.71,199.04,198.92,2.68]
[1761489411029,2.71,199.04,198.93,2.68]
[1761489411834,2.71,199.04,198.94,2.68]
[1761489415333,2.71,199.04,198.94,7.2037]
[1761489415640,2.71,199.04,198.95,2.68]
[1761489419533,2.64,199.09,198.92,61.16]
[1761489419734,2.64,199.09,198.93,2.68]
[1761489421141,2.64,199.09,198.97,2.68]
[1761489424439,2.7,199.08,198.97,2.68]
[1761489424635,2.7,199.07,198.97,2.68]
[1761489424836,6.31936058,199.07,198.97,2.68]
[1761489425036,2.7,199.1,198.97,2.68]
[1761489425236,2.7,199.09,198.97,2.68]
[1761489426234,2.7,199.08,198.94,2.68]
[1761489426839,2.7,199.07,198.94,2.68]
[1761489427634,2.7,199.07,198.95,2.68]
[1761489428337,2.7,199.06,198.95,2.68]
[1761489429142,2.7,199.06,198.89,2.66]
[1761489429535,2.78,199.05,198.89,2.66]
[1761489429939,2.78,199.04,198.89,4.525]
[1761489430146,2.78,199.04,198.9,2.66]
[1761489430633,6.39999761,199.04,198.88,2.66]
[1761489430840,2.78,199.02,198.88,2.66]
[1761489431239,2.78,199.01,198.88,2.66]
[1761489431537,2.78,199.0,198.89,2.66]
[1761489431845,2.78,198.99,198.89,2.66]
[1761489434537,2.78,198.98,198.89,2.66]
[1761489434739,2.78,198.97,198.89,2.66]
[1761489435436,3.61999761,198.99,198.89,2.66]
[1761489435642,6.39999761,199.0,198.89,2.66]
[1761489435948,3.61999761,198.99,198.89,2.66]
[1761489436144,6.39999761,198.99,198.89,2.66]
[1761489436452,4.62567961,199.03,198.88,2.66]
[1761489436634,2.78,199.11,198.93,0.79]
[1761489436941,2.78,199.11,198.95,0.79]
[1761489437142,2.78,199.11,199.0,0.79]
[1761489437345,8.87783335,199.14,199.0,0.79]
[1761489437650,2.78,199.1,199.0,0.79]
[1761489440441,4.5206,199.09,199.0,0.79]
[1761489440942,7.3006,199.09,199.0,0.79]
[1761489441447,2.78,199.06,199.0,0.79]
[1761489446251,4.25037158,199.11,199.0,0.79]
[1761489446451,2.78,199.12,199.0,0.79]
[1761489446950,2.78,199.12,199.03,0.79]
[1761489448244,2.78,199.16,199.03,7.03350819]
[1761489448439,2.78,199.16,199.05,0.79]
[1761489448640,2.78,199.16,199.06,0.79]
[1761489449344,2.78,199.16,199.08,5.3106]
[1761489452853,2.78,199.16,199.04,0.79]
[1761489458456,2.78,199.16,198.99,5.3127]
[1761489458657,2.78,199.16,198.99,0.79]
[1761489459045,2.62,199.15,198.99,0.79]
[1761489461346,2.62,199.14,198.99,0.79]
[1761489461551,2.62,199.13,198.99,0.79]
[1761489463556,2.62,199.12,198.99,0.79]
[1761489466057,2.62,199.12,198.95,4.5235]
[1761489466058,2.62,199.12,198.96,0.79]
[1761489466664,2.62,199.11,198.96,0.79]
[1761489468562,2.62,199.11,198.93,5.3141]
[1761489468960,2.62,199.1,198.93,0.79]
[1761489469160,2.62,199.09,198.93,0.79]
[1761489469364,2.62,199.08,198.93,0.79]
[1761489471663,2.62,199.07,198.93,0.79]
[1761489472763,2.62,199.07,198.94,0.79]
[1761489478269,2.62,199.07,198.9,0.79]
[1761489478470,2.62,199.06,198.9,0.79]
[1761489484770,2.62,199.06,198.91,0.8]
[1761489484971,2.74,199.05,198.91,0.8]
[1761489485176,2.74,199.04,198.91,0.8]
[1761489485377,2.74,199.03,198.91,0.8]
[1761489492274,2.74,199.03,198.87,0.79]
[1761489495381,2.83,199.02,198.87,0.79]
[1761489496177,2.83,199.02,198.85,6.24350819]
[1761489496377,2.83,199.02,198.86,0.79]
[1761489496772,2.83,199.02,198.87,0.79]
[1761489496978,2.83,199.02,198.89,0.79]
[1761489497680,2.83,199.02,198.89,4.5249]
[1761489497887,2.83,199.02,198.9,0.79]
[1761489504887,2.83,199.01,198.9,0.79]
[1761489508103,2.83,199.01,198.91,0.79]
[1761489508602,2.83,199.03,198.91,0.79]
[1761489509003,2.83,199.02,198.92,0.79]
[1761489509608,6.41803081,199.02,198.92,0.79]
[1761489509807,2.83,199.02,198.92,0.79]
[1761489510009,2.83,199.02,198.93,0.79]
[1761489510602,6.42242567,199.02,198.93,0.79]
[1761489510807,2.83,199.02,198.93,0.79]
[1761489511907,10.7115716,199.02,198.93,0.79]
[1761489512107,2.83,199.02,198.93,0.79]
[1761489512904,2.83,199.01,198.93,0.79]
[1761489515207,2.83,199.0,198.89,0.79]
[1761489515514,2.83,198.99,198.89,0.79]
[1761489515715,2.83,198.98,198.89,0.79]
[1761489515909,2.83,198.97,198.89,0.79]
[1761489521411,2.67,199.0,198.9,0.79]
[1761489522318,2.67,199.0,198.91,4.5245]
[1761489522624,2.67,198.99,198.91,5.3145]
[1761489523010,2.67,198.99,198.89,4.525]
[1761489523415,2.67,198.99,198.9,0.79]
[1761489524822,2.67,198.99,198.91,0.79]
[1761489525422,3.59801242,198.99,198.91,0.79]
[1761489525618,2.67,198.98,198.91,0.79]
[1761489527425,2.67,198.97,198.91,0.79]
[1761489531918,2.67,198.97,198.91,5.3145]
[1761489533426,2.67,198.97,198.92,0.79]
[1761489534430,2.67,199.0,198.93,0.79]
[1761489534733,10.56460112,199.0,198.93,0.79]
[1761489534926,2.67,199.0,198.93,0.79]
[1761489538224,2.67,199.0,198.94,0.79]
[1761489541938,2.67,199.0,198.95,0.79]
[1761489543441,2.81,199.03,198.95,0.79]
[1761489543638,2.81,199.02,198.95,0.79]
[1761489544036,2.81,199.02,198.96,0.79]
[1761489544935,4.65798455,199.09,198.97,0.79]
[1761489545138,7.11028416,199.11,198.98,0.79]
[1761489545339,2.81,199.11,199.01,0.79]
[1761489545941,2.81,199.14,199.02,0.79]
[1761489546135,2.81,199.13,199.02,0.79]
[1761489546354,2.81,199.12,199.02,0.79]
[1761489546544,2.81,199.12,199.05,0.79]
[1761489551345,2.81,199.12,199.04,4.5215]
[1761489551555,2.81,199.12,199.06,0.79]
[1761489557855,137.85091651,199.18,199.06,0.79]
[1761489558059,137.85091651,199.18,199.04,61.14]
[1761489558060,2.69,199.17,199.08,0.79]
[1761489563358,2.69,199.17,199.05,62.6913]
[1761489563956,2.69,199.17,199.05,58.17]
[1761489564154,2.69,199.15,198.98,0.79]
[1761489564355,2.69,199.14,198.98,0.79]
[1761489564554,2.69,199.14,198.99,4.5227]
[1761489565567,2.69,199.13,198.99,4.5227]
[1761489566659,2.69,199.13,198.99,5.3127]
[1761489567871,2.69,199.13,199.0,0.79]
[1761489569671,2.69,199.13,198.96,0.79]
[1761489570570,2.69,199.13,199.03,5.3117]
[1761489570963,2.69,199.13,199.04,0.79]
[1761489572565,2.69,199.13,199.05,0.79]
[1761489573562,2.69,199.13,199.05,5.3113]
[1761489574471,2.69,199.13,199.06,0.79]
[1761489576672,2.69,199.13,199.03,4.5218]
[1761489577265,2.69,199.13,199.03,5.3118]
[1761489577769,2.69,199.13,199.04,0.79]
[1761489582575,2.69,199.13,199.02,0.79]
[1761489583977,2.69,199.13,199.05,4.5212]
[1761489584174,2.69,199.13,199.05,5.3112]
[1761489585178,2.69,199.13,199.06,0.79]
[1761489588882,2.69,199.13,199.03,4.5218]
[1761489589082,2.69,199.13,199.03,5.3118]
[1761489589781,2.69,199.13,199.04,5.3115]
[1761489589984,2.69,199.13,199.05,0.79]
[1761489590186,3.62202175,199.13,199.05,0.79]
[1761489590380,2.85,199.12,199.05,0.79]
[1761489590583,2.85,199.12,199.05,4.5213]
[1761489590882,2.85,199.12,199.06,0.79]
[1761489594678,2.85,199.14,199.07,0.79]
[1761489596090,2.85,199.14,199.1,0.79]
[1761489601493,2.85,199.14,199.09,4.5204]
[1761489601697,2.85,199.14,199.1,0.79]
[1761489606294,2.85,199.14,199.09,4.5204]
[1761489606505,2.85,199.14,199.09,5.3104]
[1761489606705,2.85,199.14,199.11,0.79]
[1761489606899,2.73,199.18,199.11,0.79]
[1761489607203,2.73,199.18,199.1,0.79]
[1761489609097,2.73,199.18,199.13,0.79]
[1761489611603,2.73,199.18,199.14,0.79]
[1761489613304,2.73,199.18,199.11,5.31]
[1761489613494,2.73,199.18,199.12,0.79]
[1761489614606,2.73,199.18,199.1,4.5202]
[1761489614806,2.73,199.18,199.11,0.79]
[1761489615202,2.73,199.18,199.14,0.79]
[1761489616797,4.65798455,199.27,199.14,0.79]
[1761489616798,2.65,199.22,199.14,5.3092]
[1761489618707,2.65,199.22,199.15,0.79]
[1761489619499,2.65,199.26,199.12,0.79]
[1761489620210,2.65,199.26,199.19,4.5181]
[1761489620413,2.65,199.26,199.19,65.5981]
[1761489625006,2.65,199.26,199.19,61.08]
[1761489625714,2.65,199.26,199.19,61.06]
[1761489626307,2.65,199.26,199.18,61.06]
[1761489629514,2.65,199.26,199.18,61.85]
[1761489631918,2.65,199.26,199.19,0.79]
[1761489633022,2.65,199.26,199.2,0.79]
[1761489638319,2.65,199.26,199.18,61.06]
[1761489638526,2.65,199.26,199.18,61.84]
[1761489639014,2.65,199.26,199.18,61.06]
[1761489639216,2.65,199.26,199.19,0.78]
[1761489642717,2.65,199.26,199.19,5.2981]
[1761489643831,2.65,199.26,199.19,4.5181]
[1761489644028,2.65,199.26,199.2,0.78]
[1761489644224,2.65,199.26,199.21,0.78]
[1761489656536,2.65,199.26,199.21,4.5176]
[1761489656736,2.63,199.33,199.22,0.78]
[1761489657034,2.63,199.32,199.22,0.78]
[1761489657931,2.63,199.32,199.24,4.5169]
[1761489658234,2.63,199.32,199.24,5.2969]
[1761489658932,2.63,199.32,199.25,4.5167]
[1761489659137,2.63,199.32,199.25,5.2967]
[1761489659536,7.94322181,199.32,199.25,5.2967]
[1761489659840,6.28660006,199.31,199.25,5.2967]
[1761489660044,2.63,199.31,199.25,5.2967]
[1761489660339,2.63,199.31,199.26,0.78]
[1761489660938,2.63,199.3,199.26,0.78]
[1761489662542,2.63,199.3,199.23,4.5172]
[1761489662737,2.65,199.29,199.23,57.9572]
[1761489663245,2.65,199.29,199.23,4.5172]
[1761489664142,2.65,199.28,199.23,5.3072]
[1761489665847,2.65,199.28,199.24,0.79]
[1761489666040,2.65,199.28,199.23,5.3072]
[1761489668337,2.65,199.28,199.24,0.79]
[1761489668744,2.69,199.31,199.25,0.78]
[1761489669940,2.69,199.31,199.26,5.2965]
[1761489671645,2.69,199.31,199.27,0.78]
[1761489671848,2.69,199.34,199.26,4.5165]
[1761489674445,2.69,199.33,199.26,4.5165]
[1761489676154,2.69,199.33,199.26,5.2965]
[1761489677442,2.69,199.33,199.21,61.02]
[1761489677654,2.69,199.33,199.28,0.78]
[1761489678256,2.69,199.33,199.28,5.296]
[1761489680363,2.69,199.33,199.29,0.78]
[1761489681059,2.69,199.36,199.3,0.78]
[1761489681364,2.69,199.4,199.3,0.78]
[1761489681557,2.69,199.4,199.32,0.78]
[1761489683069,2.69,199.4,199.33,0.78]
[1761489684967,2.69,199.4,199.34,0.78]
[1761489689468,2.69,199.4,199.34,5.2947]
[1761489689869,2.69,199.4,199.35,0.78]
[1761489690066,2.69,199.4,199.36,0.78]
[1761489690267,2.69,199.4,199.36,61.76]
[1761489690466,2.69,199.4,199.37,0.78]
[1761489692069,2.69,199.4,199.36,60.98]
[1761489692371,2.69,199.4,199.33,4.515]
[1761489692573,2.69,199.4,199.34,60.98]
[1761489692866,2.69,199.4,199.34,61.76]
[1761489693266,2.69,199.4,199.34,60.98]
[1761489693570,2.69,199.46,199.35,0.78]
[1761489694372,2.69,199.46,199.35,5.2945]
[1761489694671,2.69,199.46,199.35,0.78]
[1761489697071,2.69,199.46,199.39,4.5135]
[1761489698677,2.69,199.46,199.37,5.294]
[1761489699170,2.69,199.46,199.37,0.78]
[1761489705386,2.69,199.46,199.37,5.294]
[1761489705583,2.69,199.46,199.38,0.78]
[1761489707990,2.69,199.46,199.38,5.2938]
[1761489709185,2.69,199.46,199.38,0.78]
[1761489709387,2.69,199.46,199.36,65.4543]
[1761489709780,2.69,199.46,199.36,66.2343]
[1761489709981,2.69,199.46,199.38,0.78]
[1761489713479,2.8,199.45,199.38,0.78]
[1761489713685,2.8,199.45,199.38,5.2938]
[1761489714793,2.8,199.45,199.39,0.78]
[1761489716284,2.8,199.45,199.36,65.4543]
[1761489716489,2.8,199.45,199.31,0.78]
[1761489716795,2.8,199.45,199.33,0.78]
[1761489716991,2.8,199.44,199.33,0.78]
[1761489717681,2.8,199.44,199.35,4.5145]
[1761489717890,2.8,199.44,199.34,0.78]
[1761489718786,2.8,199.44,199.33,0.78]
[1761489719988,2.8,199.44,199.38,4.5137]
[1761489720194,2.8,199.44,199.4,0.78]
[1761489722388,10.68638994,199.48,199.4,0.78]
[1761489722589,2.69,199.48,199.4,0.78]
[1761489723989,2.69,199.48,199.43,4.5126]
[1761489724195,2.69,199.48,199.43,5.2926]
[1761489725595,2.69,199.48,199.44,0.78]
[1761489727295,2.69,199.48,199.4,62.0]
[1761489727296,4.65798455,199.53,199.41,4.5132]
[1761489727491,2.69,199.51,199.41,4.5132]
[1761489727694,2.69,199.5,199.41,4.5132]
[1761489731093,2.69,199.5,199.41,5.2932]
[1761489731996,2.69,199.5,199.42,4.5129]
[1761489736893,2.78,199.49,199.42,4.5129]
[1761489737092,2.78,199.48,199.42,4.5129]
[1761489737293,2.78,199.47,199.43,0.78]
[1761489737494,2.78,199.46,199.43,0.78]
[1761489739895,2.78,199.46,199.36,62.78]
[1761489740201,2.78,199.46,199.27,222.08680644]
[1761489740202,2.78,199.46,199.37,61.68]
[1761489740798,2.78,199.46,199.37,60.9]
[1761489740994,2.78,199.44,199.37,60.9]
[1761489741194,2.78,199.43,199.37,60.9]
[1761489741602,2.78,199.42,199.37,60.9]
[1761489741902,2.78,199.42,199.38,0.78]
[1761489742294,10.78614968,199.46,199.38,0.78]
[1761489742502,7.11285058,199.45,199.39,0.78]
[1761489742801,2.78,199.43,199.39,0.78]
[1761489742998,2.78,199.42,199.39,0.78]
[1761489745490,2.78,199.42,199.37,0.78]
[1761489745692,2.78,199.42,199.38,60.9]
[1761489746199,2.78,199.42,199.38,61.68]
[1761489746602,2.78,199.42,199.38,60.9]
[1761489746799,2.78,199.42,199.39,0.78]
[1761489747004,2.78,199.42,199.38,60.9]
[1761489747399,2.78,199.42,199.38,61.68]
[1761489748506,2.78,199.42,199.38,60.9]
[1761489749302,2.78,199.42,199.32,0.78]
[1761489749499,2.78,199.41,199.34,0.78]
[1761489749703,2.78,199.4,199.34,0.78]
[1761489750705,2.78,199.4,199.35,0.78]
[1761489754604,2.78,199.46,199.36,4.5142]
[1761489754808,10.83468009,199.46,199.37,0.78]
[1761489755009,2.78,199.46,199.37,0.78]
[1761489755198,2.78,199.46,199.39,4.5135]
[1761489755399,2.78,199.46,199.4,61.68]
[1761489756009,2.78,199.45,199.4,61.68]
[1761489759109,2.81,199.44,199.4,61.68]
[1761489760410,2.81,199.44,199.41,0.78]
[1761489761110,2.81,199.44,199.4,60.9]
[1761489761499,2.81,199.44,199.37,4.5141]
[1761489761711,2.81,199.43,199.38,60.88]
[1761489762107,2.81,199.43,199.38,61.66]
[1761489762306,2.81,199.43,199.39,0.78]
[1761489766912,3.68754067,199.44,199.39,4.5135]
[1761489767213,2.81,199.46,199.4,0.78]
[1761489767808,2.81,199.49,199.39,0.78]
[1761489768009,6.49681431,199.49,199.39,0.78]
[1761489768210,2.81,199.49,199.39,0.78]
[1761489768998,2.81,199.49,199.42,5.2928]
[1761489769202,2.81,199.48,199.43,61.66]
[1761489769812,2.81,199.48,199.43,60.88]
[1761489770107,2.81,199.48,199.44,0.78]
[1761489771313,2.81,199.48,199.45,5.2922]
[1761489772512,2.81,199.48,199.46,0.78]
[1761489773113,2.81,199.48,199.45,4.5122]
[1761489773716,2.81,199.48,199.44,0.78]
[1761489773914,2.81,199.48,199.43,60.88]
[1761489774114,2.81,199.48,199.35,10.15065483]
[1761489774416,2.81,199.46,199.35,22.34]
[1761489774615,2.81,199.44,199.35,23.12]
[1761489774818,2.81,199.44,199.36,0.78]
[1761489775018,2.81,199.43,199.36,0.78]
[1761489775208,6.49749009,199.43,199.36,0.78]
[1761489775404,2.81,199.43,199.36,0.78]
[1761489776017,6.49742748,199.43,199.36,0.78]
[1761489776217,2.81,199.43,199.36,0.78]
[1761489776805,6.4974534,199.43,199.36,0.78]
[1761489777009,3.73626703,199.42,199.36,0.78]
[1761489777209,2.81,199.43,199.36,0.78]
[1761489777712,2.81,199.43,199.36,4.5142]
[1761489777912,2.81,199.43,199.37,0.78]
[1761489778215,2.81,199.43,199.38,60.88]
[1761489778412,2.81,199.43,199.39,0.78]
[1761489779423,2.81,199.45,199.39,0.78]
[1761489779609,2.81,199.44,199.39,0.78]
[1761489779810,2.81,199.43,199.39,0.78]
[1761489781724,10.86465818,199.46,199.39,0.78]
[1761489781919,2.81,199.46,199.39,0.78]
[1761489783120,2.81,199.46,199.4,0.78]
[1761489784426,2.81,199.46,199.4,5.2933]
[1761489786519,2.62,199.46,199.4,5.2933]
[1761489786719,2.62,199.45,199.4,5.2933]
[1761489789715,2.65,199.44,199.35,62.0]
[1761489789920,2.65,199.44,199.36,60.86]
[1761489790629,2.65,199.43,199.36,60.86]
[1761489792236,2.65,199.43,199.37,0.78]
[1761489792625,2.65,199.43,199.39,0.78]
[1761489792825,2.65,199.43,199.36,123.64]
[1761489793030,2.65,199.43,199.37,0.78]
[1761489794122,2.65,199.43,199.37,5.294]
[1761489794733,2.65,199.43,199.38,0.78]
[1761489795033,2.65,199.46,199.39,0.78]
[1761489795830,2.65,199.45,199.39,0.78]
[1761489796933,2.65,199.45,199.39,5.2935]
[1761489799440,2.65,199.45,199.39,4.5135]
[1761489799738,2.65,199.44,199.39,5.2935]
[1761489799926,2.65,199.44,199.39,4.5135]
[1761489800130,2.65,199.44,199.4,0.78]
[1761489800840,2.65,199.44,199.4,5.2933]
[1761489801035,2.65,199.44,199.41,0.78]
[1761489801341,2.65,199.45,199.41,0.78]
[1761489801744,2.65,199.45,199.42,61.64]
[1761489803045,2.65,199.45,199.42,66.1528]
[1761489804046,2.65,199.45,199.43,5.2927]
[1761489804243,2.65,199.47,199.43,5.2927]
[1761489804437,6.38795444,199.47,199.43,5.2927]
[1761489804746,2.65,199.47,199.44,0.78]
[1761489805144,2.65,199.47,199.43,5.2927]
[1761489805647,2.65,199.47,199.43,4.5127]
[1761489805942,2.65,199.47,199.44,0.78]
[1761489806745,2.65,199.47,199.45,0.78]
[1761489807140,2.65,199.49,199.45,0.78]
[1761489807534,3.73717414,199.49,199.45,5.2922]
[1761489807739,6.38717414,199.51,199.45,5.2922]
[1761489807941,2.65,199.49,199.46,0.78]
[1761489808236,6.38765547,199.48,199.47,58.01]
[1761489808445,2.65,199.47,199.45,60.86]
[1761489809044,3.73765547,199.48,199.45,60.86]
[1761489809248,2.65,199.48,199.45,60.86]
[1761489810541,2.65,199.47,199.45,60.86]
[1761489811850,2.65,199.46,199.45,60.86]
[1761489813552,2.65,199.48,199.45,60.86]
[1761489816848,6.3878634,199.48,199.45,60.86]
[1761489817047,2.65,199.48,199.45,63.43]
[1761489817746,6.38826918,199.5,199.46,2.57]
[1761489817942,2.65,199.49,199.46,2.57]
[1761489818148,2.65,199.48,199.45,60.86]
[1761489818658,2.65,199.48,199.45,63.56]
[1761489818952,2.65,199.48,199.45,68.0722]
[1761489819254,2.65,199.48,199.45,60.86]
[1761489819455,2.77,199.47,199.45,60.86]
[1761489821452,2.77,199.46,199.45,60.86]
[1761489822157,2.77,199.46,199.41,60.84]
[1761489822655,2.77,199.45,199.41,63.54]
[1761489822849,2.77,199.45,199.41,60.84]
[1761489823163,114.80842154,199.56,199.41,60.84]
[1761489823164,2.77,199.44,199.41,60.84]
[1761489823857,2.77,199.42,199.37,60.84]
[1761489824159,2.77,199.41,199.37,60.84]
[1761489824855,2.77,199.41,199.37,63.54]
[1761489827453,2.77,199.41,199.37,60.84]
[1761489827958,2.77,199.4,199.37,60.84]
[1761489829154,2.77,199.39,199.37,60.84]
[1761489829761,2.77,199.39,199.34,2.7]
[1761489830063,2.77,199.39,199.35,2.7]
[1761489831359,2.77,199.44,199.35,2.7]
[1761489831563,2.77,199.43,199.35,2.7]
[1761489831764,2.77,199.42,199.35,2.7]
[1761489831964,6.50575578,199.42,199.35,7.2144]
[1761489832162,6.50575578,199.41,199.35,7.2144]
[1761489832357,2.77,199.41,199.35,7.2144]
[1761489833459,3.735155,199.45,199.36,2.7]
[1761489833660,2.77,199.4,199.36,2.7]
[1761489834569,2.77,199.45,199.37,2.7]
[1761489835067,2.77,199.44,199.37,2.7]
[1761489835268,2.77,199.43,199.37,63.54]
[1761489835465,2.77,199.42,199.37,63.54]
[1761489835775,2.77,199.41,199.37,60.84]
[1761489836167,2.77,199.41,199.28,145.66937104]
[1761489836369,2.77,199.39,199.28,145.66937104]
[1761489836672,2.77,199.37,199.28,145.66937104]
[1761489837067,2.77,199.36,199.28,145.66937104]
[1761489837268,2.77,199.35,199.28,145.66937104]
[1761489837465,6.504182,199.35,199.28,145.66937104]
[1761489837664,2.77,199.38,199.28,145.66937104]
[1761489838171,2.77,199.37,199.28,145.66937104]
[1761489838373,2.77,199.36,199.28,145.66937104]
[1761489838567,2.77,199.35,199.28,145.66937104]
[1761489838769,2.77,199.34,199.28,145.66937104]
[1761489838971,3.72965758,199.38,199.28,145.66937104]
[1761489839271,2.77,199.33,199.26,60.86]
[1761489839677,2.77,199.33,199.22,63.56]
[1761489840774,2.77,199.32,199.22,63.56]
[1761489841572,2.77,199.32,199.23,2.7]
[1761489853884,2.77,199.32,199.23,2.81]
[1761489855187,2.77,199.32,199.26,2.81]
[1761489855376,2.77,199.32,199.22,60.86]
[1761489855377,2.77,199.32,199.17,2.81]
[1761489855787,2.77,199.32,199.19,2.81]
[1761489860987,2.72,199.31,199.19,2.81]
[1761489861394,2.72,199.3,199.19,2.81]
[1761489861594,2.72,199.29,199.19,2.81]
[1761489862991,2.72,199.28,199.19,2.81]
[1761489864198,2.72,199.27,199.19,2.81]
[1761489868808,117.6577058,199.34,199.19,2.81]
[1761489868809,2.72,199.29,199.19,2.81]
[1761489870013,2.72,199.29,199.2,2.81]
[1761489871108,2.72,199.28,199.2,2.81]
[1761489871703,2.72,199.28,199.2,7.328]
[1761489871912,2.72,199.28,199.21,2.81]
[1761489877014,2.72,199.28,199.23,2.81]
[1761489878519,3.71975961,199.32,199.25,2.72]